[Event "Early-Titled-Tuesday-Blitz-February-27-2024"]
[Site "Chess.com"]
[Date "2024.02.27"]
[Round "5"]
[White "Let_it_be_1"]
[Black "Kazancev_Valerij_M"]
[Result "0-1"]
[WhiteElo "2548"]
[BlackElo "2419"]
[TimeControl "180+1"]
[EndTime "8:54:28 PST"]
[Termination "Kazancev_Valerij_M won by resignation"]

1. e4 {[%clk 0:03:00.9]} 1... g6 {[%clk 0:02:59.3]} 2. d4 {[%clk 0:03:00.6]}
2... Bg7 {[%clk 0:02:59.3]} 3. Nc3 {[%clk 0:03:00.6]} 3... e6 {[%clk 0:02:59.5]}
4. f4 {[%clk 0:02:58.5]} 4... Ne7 {[%clk 0:02:59.6]} 5. Nf3 {[%clk 0:02:58.1]}
5... a6 {[%clk 0:02:57.7]} 6. Bd3 {[%clk 0:02:56.8]} 6... f5 {[%clk 0:02:57.4]}
7. O-O {[%clk 0:02:51.1]} 7... O-O {[%clk 0:02:53.7]} 8. e5 {[%clk 0:02:51]}
8... b5 {[%clk 0:02:53.1]} 9. a3 {[%clk 0:02:45.1]} 9... Bb7 {[%clk 0:02:51.8]}
10. Be3 {[%clk 0:02:43.1]} 10... d6 {[%clk 0:02:41.9]} 11. Qe2 {[%clk
0:02:38.7]} 11... h6 {[%clk 0:02:39]} 12. Kh1 {[%clk 0:02:36.9]} 12... Re8
{[%clk 0:02:30.6]} 13. exd6 {[%clk 0:02:32.8]} 13... cxd6 {[%clk 0:02:30.3]} 14.
Bf2 {[%clk 0:02:30.4]} 14... Nd5 {[%clk 0:02:06]} 15. Nxd5 {[%clk 0:02:29.8]}
15... Bxd5 {[%clk 0:02:05.8]} 16. b3 {[%clk 0:02:24.2]} 16... Nd7 {[%clk
0:02:00]} 17. c4 {[%clk 0:02:23.3]} 17... bxc4 {[%clk 0:01:59.4]} 18. bxc4
{[%clk 0:02:23.4]} 18... Bb7 {[%clk 0:01:59.9]} 19. Rab1 {[%clk 0:02:21.2]}
19... Qc8 {[%clk 0:01:58.5]} 20. Rb3 {[%clk 0:02:05.5]} 20... Nf6 {[%clk
0:01:53.1]} 21. Rfb1 {[%clk 0:01:54.1]} 21... Be4 {[%clk 0:01:50.3]} 22. Bh4
{[%clk 0:01:39.2]} 22... Bxd3 {[%clk 0:01:35.8]} 23. Qxd3 {[%clk 0:01:39.1]}
23... Ne4 {[%clk 0:01:35.9]} 24. Rb7 {[%clk 0:01:34.9]} 24... Qc6 {[%clk
0:01:16.1]} 25. Be1 {[%clk 0:01:29.7]} 25... d5 {[%clk 0:00:57.6]} 26. c5 {[%clk
0:01:26.3]} 26... Qa4 {[%clk 0:00:54.8]} 27. h3 {[%clk 0:01:15.6]} 27... g5
{[%clk 0:00:46.9]} 28. fxg5 {[%clk 0:01:12.1]} 28... hxg5 {[%clk 0:00:47.6]} 29.
g4 {[%clk 0:01:09.1]} 29... fxg4 {[%clk 0:00:44.5]} 30. hxg4 {[%clk 0:01:09.1]}
30... Rf8 {[%clk 0:00:44.9]} 31. Kg2 {[%clk 0:01:05.7]} 31... Rf4 {[%clk
0:00:41.7]} 32. Nh2 {[%clk 0:00:51.4]} 32... Raf8 {[%clk 0:00:32.8]} 33. Bg3
{[%clk 0:00:43.9]} 33... Nxg3 {[%clk 0:00:21.4]} 34. Qg6 {[%clk 0:00:43.3]}
34... Qxd4 {[%clk 0:00:20.7]} 35. Qxe6+ {[%clk 0:00:37.7]} 35... Kh8 {[%clk
0:00:18.4]} 36. Rxg7 {[%clk 0:00:29.9]} 36... Qxg7 {[%clk 0:00:17.7]} 37. Kxg3
{[%clk 0:00:29.8]} 37... Re4 {[%clk 0:00:09.3]} 38. Qxd5 {[%clk 0:00:27.9]}
38... Qc3+ {[%clk 0:00:08.8]} 39. Kg2 {[%clk 0:00:26.2]} 39... Qc2+ {[%clk
0:00:06.3]} 40. Kh3 {[%clk 0:00:24]} 40... Re3+ {[%clk 0:00:05.8]} 0-1

[Event "Early-Titled-Tuesday-Blitz-February-27-2024"]
[Site "Chess.com"]
[Date "2024.02.27"]
[Round "5"]
[White "Andreikka"]
[Black "vi_pranav"]
[Result "0-1"]
[WhiteElo "2950"]
[BlackElo "3117"]
[TimeControl "180+1"]
[EndTime "8:54:32 PST"]
[Termination "vi_pranav won on time"]

1. e4 {[%clk 0:03:00.9]} 1... e5 {[%clk 0:03:00.1]} 2. Nf3 {[%clk 0:03:00.7]}
2... Nc6 {[%clk 0:03:00.9]} 3. Bc4 {[%clk 0:03:01.2]} 3... Nf6 {[%clk
0:03:01.3]} 4. d3 {[%clk 0:03:01.2]} 4... Bc5 {[%clk 0:03:00.5]} 5. Nc3 {[%clk
0:02:54.4]} 5... d6 {[%clk 0:02:59.3]} 6. Na4 {[%clk 0:02:53.7]} 6... Bb6 {[%clk
0:02:52.5]} 7. a3 {[%clk 0:02:54.2]} 7... O-O {[%clk 0:02:51.5]} 8. O-O {[%clk
0:02:54.4]} 8... h6 {[%clk 0:02:51]} 9. h3 {[%clk 0:02:53.1]} 9... Be6 {[%clk
0:02:47.9]} 10. Bxe6 {[%clk 0:02:48.7]} 10... fxe6 {[%clk 0:02:48.8]} 11. b4
{[%clk 0:02:44.7]} 11... Qe8 {[%clk 0:02:46.5]} 12. Nxb6 {[%clk 0:02:37.6]}
12... axb6 {[%clk 0:02:46.3]} 13. c4 {[%clk 0:02:38.1]} 13... Nh5 {[%clk
0:02:43.6]} 14. g3 {[%clk 0:02:30.6]} 14... Nxb4 {[%clk 0:02:33.7]} 15. d4
{[%clk 0:01:56.1]} 15... Nc6 {[%clk 0:02:00.6]} 16. d5 {[%clk 0:01:23.9]} 16...
Na5 {[%clk 0:01:59.2]} 17. Qd3 {[%clk 0:01:23.8]} 17... Nf6 {[%clk 0:01:32.5]}
18. Kg2 {[%clk 0:01:17.5]} 18... c6 {[%clk 0:01:22.1]} 19. dxe6 {[%clk 0:01:01]}
19... Qxe6 {[%clk 0:01:21.4]} 20. Nd2 {[%clk 0:01:01.4]} 20... Nd7 {[%clk
0:01:21.5]} 21. Rb1 {[%clk 0:00:59]} 21... Rf7 {[%clk 0:01:12.8]} 22. Bb2 {[%clk
0:00:55.7]} 22... Nc5 {[%clk 0:01:01.1]} 23. Qe2 {[%clk 0:00:55.6]} 23... Na4
{[%clk 0:00:46.5]} 24. Ba1 {[%clk 0:00:35.7]} 24... Raf8 {[%clk 0:00:45.8]} 25.
f3 {[%clk 0:00:30.4]} 25... Ra8 {[%clk 0:00:44.4]} 26. Rfc1 {[%clk 0:00:29.6]}
26... Qe8 {[%clk 0:00:41.3]} 27. Nf1 {[%clk 0:00:28.9]} 27... Nc5 {[%clk
0:00:37.8]} 28. Qd1 {[%clk 0:00:24.3]} 28... Qe6 {[%clk 0:00:29.6]} 29. Ne3
{[%clk 0:00:24.3]} 29... Raf8 {[%clk 0:00:30.2]} 30. Nf5 {[%clk 0:00:18]} 30...
Nxc4 {[%clk 0:00:28.4]} 31. a4 {[%clk 0:00:18.3]} 31... Qxf5 {[%clk 0:00:17.2]}
32. exf5 {[%clk 0:00:09.1]} 32... Ne3+ {[%clk 0:00:17.3]} 33. Kf2 {[%clk
0:00:07.5]} 33... Nxd1+ {[%clk 0:00:18.2]} 34. Rxd1 {[%clk 0:00:07.5]} 34...
Rxf5 {[%clk 0:00:18.9]} 35. f4 {[%clk 0:00:08.3]} 35... exf4 {[%clk 0:00:18.2]}
36. g4 {[%clk 0:00:08.9]} 36... R5f7 {[%clk 0:00:16.4]} 37. Rxb6 {[%clk
0:00:07.1]} 37... Nxa4 {[%clk 0:00:16.7]} 38. Rb4 {[%clk 0:00:06.1]} 38... Nc5
{[%clk 0:00:15.6]} 39. Rxd6 {[%clk 0:00:05.9]} 39... Re8 {[%clk 0:00:16.2]} 40.
Rd1 {[%clk 0:00:03.6]} 40... f3 {[%clk 0:00:15.5]} 41. Bd4 {[%clk 0:00:04.1]}
41... Re2+ {[%clk 0:00:15.2]} 42. Kf1 {[%clk 0:00:01.8]} 42... Ne4 {[%clk
0:00:16.1]} 0-1

[Event "Early-Titled-Tuesday-Blitz-February-27-2024"]
[Site "Chess.com"]
[Date "2024.02.27"]
[Round "5"]
[White "kuba2006"]
[Black "rhungaski"]
[Result "1-0"]
[WhiteElo "2473"]
[BlackElo "2590"]
[TimeControl "180+1"]
[EndTime "8:54:32 PST"]
[Termination "kuba2006 won on time"]

1. e4 {[%clk 0:02:50.3]} 1... c5 {[%clk 0:02:59]} 2. Nf3 {[%clk 0:02:48.8]} 2...
Nc6 {[%clk 0:02:58.9]} 3. d4 {[%clk 0:02:44.1]} 3... cxd4 {[%clk 0:02:59.8]} 4.
Nxd4 {[%clk 0:02:44.7]} 4... e5 {[%clk 0:02:59.6]} 5. Nb5 {[%clk 0:02:41.3]}
5... a6 {[%clk 0:02:58.9]} 6. Nd6+ {[%clk 0:02:40.7]} 6... Bxd6 {[%clk
0:02:59.5]} 7. Qxd6 {[%clk 0:02:41.2]} 7... Qf6 {[%clk 0:03:00.1]} 8. Qxf6
{[%clk 0:02:37.4]} 8... Nxf6 {[%clk 0:03:01]} 9. Nc3 {[%clk 0:02:32.4]} 9... Nb4
{[%clk 0:03:00.2]} 10. Bd3 {[%clk 0:02:30.9]} 10... d5 {[%clk 0:02:40.2]} 11.
exd5 {[%clk 0:02:24.2]} 11... Nfxd5 {[%clk 0:02:41.1]} 12. Nxd5 {[%clk
0:02:23.4]} 12... Nxd5 {[%clk 0:02:42]} 13. Bd2 {[%clk 0:02:21.5]} 13... Bg4
{[%clk 0:02:41]} 14. f3 {[%clk 0:02:21]} 14... Be6 {[%clk 0:02:40.1]} 15. O-O-O
{[%clk 0:02:18.6]} 15... f6 {[%clk 0:02:33.2]} 16. Rhe1 {[%clk 0:02:18.5]} 16...
Kf7 {[%clk 0:02:29.3]} 17. b3 {[%clk 0:02:10.4]} 17... a5 {[%clk 0:02:16.4]} 18.
Be4 {[%clk 0:01:51.2]} 18... h5 {[%clk 0:01:58.1]} 19. Kb2 {[%clk 0:01:46.4]}
19... Ra7 {[%clk 0:00:59.8]} 20. c4 {[%clk 0:01:42.9]} 20... Nb4 {[%clk
0:00:57.2]} 21. Be3 {[%clk 0:01:38.7]} 21... b6 {[%clk 0:00:46.4]} 22. Bxb6
{[%clk 0:01:37.5]} 22... Ra6 {[%clk 0:00:46.8]} 23. Bc5 {[%clk 0:00:43.6]} 23...
Rb8 {[%clk 0:00:44.1]} 24. Bd6 {[%clk 0:00:36.3]} 24... Rxd6 {[%clk 0:00:08]}
25. Rxd6 {[%clk 0:00:30.5]} 25... a4 {[%clk 0:00:08.6]} 26. a3 {[%clk
0:00:21.1]} 26... Ke7 {[%clk 0:00:03.2]} 27. Red1 {[%clk 0:00:17.3]} 27... f5
{[%clk 0:00:03]} 28. Bb1 {[%clk 0:00:10.8]} 28... Nd5 {[%clk 0:00:03.2]} 29.
R6xd5 {[%clk 0:00:08.6]} 29... Rxb3+ {[%clk 0:00:04.1]} 30. Ka2 {[%clk
0:00:08.5]} 30... Bxd5 {[%clk 0:00:03.7]} 31. Rxd5 {[%clk 0:00:09.4]} 31... Re3
{[%clk 0:00:04.1]} 32. Bxf5 {[%clk 0:00:07.4]} 32... Re2+ {[%clk 0:00:02.5]} 33.
Kb1 {[%clk 0:00:07.8]} 33... Rxg2 {[%clk 0:00:02]} 34. Rxe5+ {[%clk 0:00:06.9]}
34... Kf6 {[%clk 0:00:02.6]} 35. Ra5 {[%clk 0:00:06.6]} 35... Rxh2 {[%clk
0:00:02.4]} 36. Bc8 {[%clk 0:00:05.7]} 36... h4 {[%clk 0:00:01.8]} 37. Rxa4
{[%clk 0:00:06.3]} 37... h3 {[%clk 0:00:01.7]} 38. Ra6+ {[%clk 0:00:06.9]} 38...
Kg5 {[%clk 0:00:01.6]} 39. Bxh3 {[%clk 0:00:04.8]} 39... Rxh3 {[%clk 0:00:01.6]}
40. Ra7 {[%clk 0:00:05.7]} 1-0

[Event "Early-Titled-Tuesday-Blitz-February-27-2024"]
[Site "Chess.com"]
[Date "2024.02.27"]
[Round "5"]
[White "Licancabur"]
[Black "Bastiandash"]
[Result "1-0"]
[WhiteElo "2478"]
[BlackElo "2600"]
[TimeControl "180+1"]
[EndTime "8:54:33 PST"]
[Termination "Licancabur won by resignation"]

1. d4 {[%clk 0:03:00.9]} 1... Nf6 {[%clk 0:02:33.9]} 2. Bg5 {[%clk 0:02:58.5]}
2... d5 {[%clk 0:02:33.5]} 3. e3 {[%clk 0:02:57.6]} 3... c5 {[%clk 0:02:30]} 4.
Bxf6 {[%clk 0:02:56.7]} 4... gxf6 {[%clk 0:02:27.9]} 5. dxc5 {[%clk 0:02:56.3]}
5... Nc6 {[%clk 0:02:21]} 6. Nf3 {[%clk 0:02:54.9]} 6... e5 {[%clk 0:02:12.1]}
7. Nc3 {[%clk 0:02:53.9]} 7... Be6 {[%clk 0:02:09.4]} 8. Qd2 {[%clk 0:02:51.7]}
8... Bxc5 {[%clk 0:02:06.7]} 9. O-O-O {[%clk 0:02:51]} 9... Rc8 {[%clk
0:01:38.2]} 10. Nxd5 {[%clk 0:02:45.8]} 10... Bxd5 {[%clk 0:01:34.8]} 11. Qxd5
{[%clk 0:02:45.3]} 11... Qxd5 {[%clk 0:01:35.4]} 12. Rxd5 {[%clk 0:02:45.3]}
12... Nb4 {[%clk 0:01:36.3]} 13. Bb5+ {[%clk 0:02:31.9]} 13... Kf8 {[%clk
0:01:24.5]} 14. Rd7 {[%clk 0:02:27.5]} 14... Nxa2+ {[%clk 0:00:48]} 15. Kb1
{[%clk 0:02:26.6]} 15... Nb4 {[%clk 0:00:48.9]} 16. Bc4 {[%clk 0:02:12]} 16...
Be7 {[%clk 0:00:42.5]} 17. Bb3 {[%clk 0:01:56.8]} 17... Na6 {[%clk 0:00:07.7]}
18. Rxb7 {[%clk 0:01:30.2]} 18... Nc5 {[%clk 0:00:07.3]} 19. Rxa7 {[%clk
0:01:30.3]} 19... Nxb3 {[%clk 0:00:07.1]} 20. cxb3 {[%clk 0:01:30.5]} 20... Rb8
{[%clk 0:00:05]} 21. Rd1 {[%clk 0:01:28.4]} 21... Bc5 {[%clk 0:00:03.5]} 22. Rc7
{[%clk 0:01:20.9]} 22... Bb6 {[%clk 0:00:03.8]} 23. Rc6 {[%clk 0:01:07.8]} 23...
Kg7 {[%clk 0:00:03.7]} 24. Nh4 {[%clk 0:01:07.1]} 24... Ba5 {[%clk 0:00:04]} 25.
Nf5+ {[%clk 0:01:04]} 25... Kg6 {[%clk 0:00:04.2]} 26. e4 {[%clk 0:00:49.9]}
26... Rxb3 {[%clk 0:00:03.7]} 27. Rdd6 {[%clk 0:00:38.7]} 27... Rhb8 {[%clk
0:00:03.8]} 28. Rxf6+ {[%clk 0:00:31.9]} 28... Kg5 {[%clk 0:00:04]} 29. h4+
{[%clk 0:00:29.9]} 29... Kg4 {[%clk 0:00:04.4]} 30. f3+ {[%clk 0:00:26.3]} 30...
Kf4 {[%clk 0:00:04.3]} 31. Nd4+ {[%clk 0:00:26.1]} 31... Ke3 {[%clk 0:00:04.3]}
32. Nxb3 {[%clk 0:00:26.2]} 32... Rxb3 {[%clk 0:00:05]} 33. Kc2 {[%clk
0:00:25.8]} 33... Rb8 {[%clk 0:00:04.6]} 34. Rxf7 {[%clk 0:00:25.4]} 34... Bb6
{[%clk 0:00:03.8]} 35. Rxh7 {[%clk 0:00:23.1]} 35... Bd4 {[%clk 0:00:04.3]} 36.
b3 {[%clk 0:00:22.5]} 36... Ra8 {[%clk 0:00:04.8]} 37. b4 {[%clk 0:00:20.7]}
37... Ra2+ {[%clk 0:00:03.1]} 38. Kb3 {[%clk 0:00:20.8]} 38... Rxg2 {[%clk
0:00:03.8]} 39. Rf7 {[%clk 0:00:19.4]} 39... Kd3 {[%clk 0:00:03.9]} 40. Ka4
{[%clk 0:00:18.7]} 40... Rb2 {[%clk 0:00:03.5]} 41. Kb5 {[%clk 0:00:18]} 41...
Bc3 {[%clk 0:00:03.6]} 42. Rd7+ {[%clk 0:00:18.2]} 42... Kc2 {[%clk 0:00:02.8]}
43. Rdc7 {[%clk 0:00:16.7]} 43... Rxb4+ {[%clk 0:00:02.7]} 44. Ka6 {[%clk
0:00:16.5]} 44... Rb3 {[%clk 0:00:03.6]} 45. Rxc3+ {[%clk 0:00:16.2]} 45... Rxc3
{[%clk 0:00:04.5]} 1-0

[Event "Early-Titled-Tuesday-Blitz-February-27-2024"]
[Site "Chess.com"]
[Date "2024.02.27"]
[Round "5"]
[White "martinmena"]
[Black "Leebit02"]
[Result "0-1"]
[WhiteElo "2244"]
[BlackElo "2544"]
[TimeControl "180+1"]
[EndTime "8:54:34 PST"]
[Termination "Leebit02 won by checkmate"]

1. c4 {[%clk 0:03:00.9]} 1... e6 {[%clk 0:02:57.3]} 2. g3 {[%clk 0:02:57]} 2...
d5 {[%clk 0:02:57.4]} 3. Bg2 {[%clk 0:02:57.1]} 3... Nf6 {[%clk 0:02:56.7]} 4.
Nf3 {[%clk 0:02:57.4]} 4... d4 {[%clk 0:02:57]} 5. d3 {[%clk 0:02:54.4]} 5... c5
{[%clk 0:02:57.1]} 6. O-O {[%clk 0:02:54.7]} 6... Nc6 {[%clk 0:02:57.5]} 7. Bg5
{[%clk 0:02:54.7]} 7... Be7 {[%clk 0:02:56]} 8. Nbd2 {[%clk 0:02:54.3]} 8... O-O
{[%clk 0:02:55.5]} 9. Bh4 {[%clk 0:02:41.7]} 9... e5 {[%clk 0:02:49.3]} 10. Ng5
{[%clk 0:02:39.2]} 10... Bf5 {[%clk 0:02:42.5]} 11. f4 {[%clk 0:02:32.1]} 11...
exf4 {[%clk 0:02:33.9]} 12. Rxf4 {[%clk 0:02:31.9]} 12... Bg6 {[%clk 0:02:31.2]}
13. Nge4 {[%clk 0:02:31]} 13... Nd7 {[%clk 0:02:27.2]} 14. Bxe7 {[%clk
0:02:23.4]} 14... Qxe7 {[%clk 0:02:27.1]} 15. Nf1 {[%clk 0:01:50.9]} 15... Rae8
{[%clk 0:02:20.3]} 16. Rf2 {[%clk 0:01:35.3]} 16... Nde5 {[%clk 0:02:17.5]} 17.
h3 {[%clk 0:01:30.9]} 17... f5 {[%clk 0:01:43.1]} 18. Ned2 {[%clk 0:01:29.8]}
18... Bh5 {[%clk 0:01:43.8]} 19. Bd5+ {[%clk 0:01:21.1]} 19... Kh8 {[%clk
0:01:43.7]} 20. Nf3 {[%clk 0:01:02.1]} 20... f4 {[%clk 0:01:38.2]} 21. g4 {[%clk
0:00:32.6]} 21... Bf7 {[%clk 0:01:27.5]} 22. Bxf7 {[%clk 0:00:31.6]} 22... Nxf7
{[%clk 0:01:25.9]} 23. Qd2 {[%clk 0:00:29]} 23... Nd6 {[%clk 0:01:16.3]} 24. Kg2
{[%clk 0:00:18.7]} 24... Rf6 {[%clk 0:01:11.4]} 25. N1h2 {[%clk 0:00:15.6]}
25... Ref8 {[%clk 0:01:07.2]} 26. Nh4 {[%clk 0:00:13.3]} 26... g5 {[%clk
0:01:03.8]} 27. N4f3 {[%clk 0:00:12.6]} 27... Re6 {[%clk 0:01:03.9]} 28. Re1
{[%clk 0:00:11.7]} 28... Re8 {[%clk 0:01:04.1]} 29. Nf1 {[%clk 0:00:11.9]} 29...
Kg7 {[%clk 0:00:57.5]} 30. N1h2 {[%clk 0:00:11.2]} 30... Kg6 {[%clk 0:00:54]}
31. Kf1 {[%clk 0:00:11]} 31... Re3 {[%clk 0:00:51.6]} 32. Rg2 {[%clk 0:00:10.1]}
32... Nb4 {[%clk 0:00:49.7]} 33. a3 {[%clk 0:00:07.8]} 33... Nc6 {[%clk
0:00:42.8]} 34. Kf2 {[%clk 0:00:06.4]} 34... b6 {[%clk 0:00:39.7]} 35. h4 {[%clk
0:00:03.5]} 35... gxh4 {[%clk 0:00:38.9]} 36. g5 {[%clk 0:00:04]} 36... Nf5
{[%clk 0:00:35.2]} 37. Rg4 {[%clk 0:00:04.5]} 37... Ng3 {[%clk 0:00:33.2]} 38.
Nxh4+ {[%clk 0:00:04.6]} 38... Kh5 {[%clk 0:00:27.7]} 39. Rxf4 {[%clk
0:00:04.3]} 39... Nxe2 {[%clk 0:00:23.5]} 40. Nf5 {[%clk 0:00:03.8]} 40... Qxg5
{[%clk 0:00:21.6]} 41. Rh4+ {[%clk 0:00:03]} 41... Kg6 {[%clk 0:00:21.4]} 42.
Rh6+ {[%clk 0:00:02.7]} 42... Kxf5 {[%clk 0:00:19.8]} 43. Nf3 {[%clk 0:00:01.6]}
43... Qg3+ {[%clk 0:00:19.3]} 44. Kf1 {[%clk 0:00:01.8]} 44... Rxf3# {[%clk
0:00:19.4]} 0-1

[Event "Early-Titled-Tuesday-Blitz-February-27-2024"]
[Site "Chess.com"]
[Date "2024.02.27"]
[Round "5"]
[White "LikeWater"]
[Black "BilodeauA"]
[Result "0-1"]
[WhiteElo "2722"]
[BlackElo "3015"]
[TimeControl "180+1"]
[EndTime "8:54:35 PST"]
[Termination "BilodeauA won by checkmate"]

1. e4 {[%clk 0:03:00.9]} 1... e5 {[%clk 0:02:59.4]} 2. Nf3 {[%clk 0:03:00]} 2...
Nc6 {[%clk 0:02:59.9]} 3. Nc3 {[%clk 0:02:57.1]} 3... Nf6 {[%clk 0:02:59.4]} 4.
Bb5 {[%clk 0:02:56.9]} 4... Bd6 {[%clk 0:02:56.7]} 5. d3 {[%clk 0:02:51.8]} 5...
a6 {[%clk 0:02:48.2]} 6. Bc4 {[%clk 0:02:50.9]} 6... h6 {[%clk 0:02:47.1]} 7. a3
{[%clk 0:02:50]} 7... Bc5 {[%clk 0:02:41]} 8. Be3 {[%clk 0:02:43.5]} 8... d6
{[%clk 0:02:32]} 9. d4 {[%clk 0:02:36.8]} 9... exd4 {[%clk 0:02:29.6]} 10. Nxd4
{[%clk 0:02:37.7]} 10... Ne5 {[%clk 0:02:10.9]} 11. Be2 {[%clk 0:02:03.8]} 11...
Nfg4 {[%clk 0:02:06.2]} 12. Bf4 {[%clk 0:01:56.5]} 12... c6 {[%clk 0:02:06.4]}
13. O-O {[%clk 0:01:49.7]} 13... Qf6 {[%clk 0:02:00.7]} 14. Bxe5 {[%clk
0:01:19.3]} 14... Nxe5 {[%clk 0:01:54.2]} 15. Nb3 {[%clk 0:01:15.7]} 15... Ba7
{[%clk 0:01:50.3]} 16. Qd2 {[%clk 0:00:59]} 16... O-O {[%clk 0:01:42.4]} 17.
Rad1 {[%clk 0:00:58.6]} 17... Rd8 {[%clk 0:01:39.9]} 18. Kh1 {[%clk 0:00:58.7]}
18... Be6 {[%clk 0:01:25.9]} 19. Nd4 {[%clk 0:00:21.4]} 19... Nc4 {[%clk
0:01:24.4]} 20. Bxc4 {[%clk 0:00:21.6]} 20... Bxc4 {[%clk 0:01:24.4]} 21. Rfe1
{[%clk 0:00:22.1]} 21... Re8 {[%clk 0:00:52.9]} 22. f4 {[%clk 0:00:16.7]} 22...
Rad8 {[%clk 0:00:48.8]} 23. b3 {[%clk 0:00:13.8]} 23... Be6 {[%clk 0:00:48.6]}
24. Nxe6 {[%clk 0:00:13.2]} 24... Qxe6 {[%clk 0:00:49]} 25. Qd3 {[%clk
0:00:12.5]} 25... d5 {[%clk 0:00:47.6]} 26. e5 {[%clk 0:00:13]} 26... f6 {[%clk
0:00:43.6]} 27. f5 {[%clk 0:00:13]} 27... Qe7 {[%clk 0:00:38.8]} 28. e6 {[%clk
0:00:13.6]} 28... Qxa3 {[%clk 0:00:38.8]} 29. Ne2 {[%clk 0:00:13.7]} 29... c5
{[%clk 0:00:34.6]} 30. Nf4 {[%clk 0:00:14.1]} 30... c4 {[%clk 0:00:33.6]} 31.
Qg3 {[%clk 0:00:13.8]} 31... cxb3 {[%clk 0:00:25.5]} 32. Nh5 {[%clk 0:00:12.2]}
32... Qe7 {[%clk 0:00:24]} 33. cxb3 {[%clk 0:00:12]} 33... d4 {[%clk 0:00:23.9]}
34. Re4 {[%clk 0:00:11.7]} 34... Bb8 {[%clk 0:00:22.4]} 35. Qg6 {[%clk 0:00:12]}
35... Kh8 {[%clk 0:00:17.3]} 36. Rh4 {[%clk 0:00:10.6]} 36... Rg8 {[%clk
0:00:17.8]} 37. Rd3 {[%clk 0:00:09.7]} 37... Rc8 {[%clk 0:00:17.4]} 38. g4
{[%clk 0:00:07.6]} 38... Rc1+ {[%clk 0:00:15.9]} 39. Kg2 {[%clk 0:00:07.9]}
39... Rc2+ {[%clk 0:00:16.6]} 40. Kf3 {[%clk 0:00:04.6]} 40... Qc5 {[%clk
0:00:15]} 41. Ng3 {[%clk 0:00:03.8]} 41... Bf4 {[%clk 0:00:09.5]} 42. Kxf4
{[%clk 0:00:01.8]} 42... Rf2+ {[%clk 0:00:09.4]} 43. Rf3 {[%clk 0:00:01.4]}
43... Qe5# {[%clk 0:00:09.4]} 0-1

[Event "Early-Titled-Tuesday-Blitz-February-27-2024"]
[Site "Chess.com"]
[Date "2024.02.27"]
[Round "5"]
[White "GAusal"]
[Black "MaxLeto"]
[Result "1-0"]
[WhiteElo "2313"]
[BlackElo "2511"]
[TimeControl "180+1"]
[EndTime "8:54:36 PST"]
[Termination "GAusal won on time"]

1. d4 {[%clk 0:03:00.9]} 1... h5 {[%clk 0:02:59.3]} 2. Nf3 {[%clk 0:03:01.2]}
2... h4 {[%clk 0:03:00.2]} 3. e4 {[%clk 0:02:52]} 3... h3 {[%clk 0:03:01.1]} 4.
Nc3 {[%clk 0:02:38.3]} 4... d6 {[%clk 0:03:01.2]} 5. gxh3 {[%clk 0:02:32.6]}
5... Bxh3 {[%clk 0:02:54.4]} 6. Bxh3 {[%clk 0:02:27.8]} 6... Rxh3 {[%clk
0:02:55.3]} 7. Ng5 {[%clk 0:02:23.4]} 7... Rh8 {[%clk 0:02:47.9]} 8. Qf3 {[%clk
0:02:19.7]} 8... Nh6 {[%clk 0:02:48.5]} 9. Bd2 {[%clk 0:02:15.8]} 9... e6 {[%clk
0:02:45.7]} 10. O-O-O {[%clk 0:02:15.7]} 10... c6 {[%clk 0:02:36]} 11. h4 {[%clk
0:02:07.8]} 11... Nd7 {[%clk 0:02:33]} 12. d5 {[%clk 0:02:03.3]} 12... cxd5
{[%clk 0:02:29.2]} 13. exd5 {[%clk 0:02:00.6]} 13... e5 {[%clk 0:02:29.5]} 14.
Nge4 {[%clk 0:01:56.3]} 14... Nf6 {[%clk 0:01:38.3]} 15. Bxh6 {[%clk 0:01:50.9]}
15... Rxh6 {[%clk 0:01:35.1]} 16. h5 {[%clk 0:01:46.5]} 16... Qa5 {[%clk
0:01:31]} 17. Ng3 {[%clk 0:01:36.1]} 17... O-O-O {[%clk 0:00:58.5]} 18. Nf5
{[%clk 0:01:30.9]} 18... Rh7 {[%clk 0:00:55.2]} 19. Kb1 {[%clk 0:01:25.5]} 19...
Kb8 {[%clk 0:00:51.8]} 20. h6 {[%clk 0:01:21.1]} 20... g6 {[%clk 0:00:46.5]} 21.
Ne3 {[%clk 0:01:07.9]} 21... Nh5 {[%clk 0:00:34.1]} 22. Ne4 {[%clk 0:00:58.1]}
22... Bxh6 {[%clk 0:00:20.4]} 23. c4 {[%clk 0:00:42.4]} 23... f5 {[%clk
0:00:12.4]} 24. Nc3 {[%clk 0:00:33.3]} 24... e4 {[%clk 0:00:11.7]} 25. Qg2
{[%clk 0:00:29.8]} 25... Nf4 {[%clk 0:00:11.7]} 26. Qg3 {[%clk 0:00:26.4]} 26...
Rg7 {[%clk 0:00:01.7]} 27. Rxh6 {[%clk 0:00:25]} 27... Nd3 {[%clk 0:00:02.3]}
28. Rxd3 {[%clk 0:00:24.2]} 28... exd3 {[%clk 0:00:02.3]} 29. Rxg6 {[%clk
0:00:23.8]} 29... Rf7 {[%clk 0:00:02.5]} 30. Rxd6 {[%clk 0:00:22.6]} 30... Rc8
{[%clk 0:00:02.1]} 31. Ra6+ {[%clk 0:00:21.4]} 31... Qc7 {[%clk 0:00:02.6]} 32.
Qxc7+ {[%clk 0:00:20.1]} 32... Rcxc7 {[%clk 0:00:03.1]} 33. Re6 {[%clk
0:00:20.1]} 33... f4 {[%clk 0:00:03.6]} 34. Ng4 {[%clk 0:00:18.6]} 34... Rxc4
{[%clk 0:00:03.1]} 35. Kc1 {[%clk 0:00:13.7]} 35... Rd4 {[%clk 0:00:02.9]} 36.
Kd2 {[%clk 0:00:13.4]} 36... Rg7 {[%clk 0:00:02.7]} 37. f3 {[%clk 0:00:13.2]}
37... Rh7 {[%clk 0:00:02.6]} 38. Re4 {[%clk 0:00:11.4]} 38... Rxe4 {[%clk
0:00:02.3]} 39. Nxe4 {[%clk 0:00:08.2]} 39... Rh3 {[%clk 0:00:02.6]} 40. Kxd3
{[%clk 0:00:09.1]} 40... Rxf3+ {[%clk 0:00:02.7]} 41. Kd4 {[%clk 0:00:10]} 41...
Rf1 {[%clk 0:00:02.5]} 42. Ne5 {[%clk 0:00:10.5]} 42... f3 {[%clk 0:00:02.7]}
43. d6 {[%clk 0:00:10.8]} 43... Rd1+ {[%clk 0:00:01.7]} 44. Ke3 {[%clk
0:00:09.5]} 1-0